fUST/lending_fUST_20260523
["ID","MTS","AMOUNT","RATE_DAILY","PERIOD"]
[422851516,1779522670000,-3777.66,0.00012054,2]
[422851517,1779522670000,-2296.31,0.00012054,2]
[422851518,1779522670000,-1889.65,0.00012054,2]
[422851522,1779522670000,-3810.6,0.00012054,2]
[422851512,1779522670000,-1016.89,0.00012054,2]
[422851523,1779522670000,-3408.86,0.00012054,2]
[422851521,1779522670000,-1214.59,0.00012054,2]
[422851536,1779522670000,-560.81,0.00012054,2]
[422851534,1779522670000,-4331.31,0.00012054,2]
[422851535,1779522670000,-525.66023661,0.00012054,2]
[422851527,1779522670000,-4472.53,0.00012054,2]
[422851533,1779522670000,-1573.6,0.00012054,2]
[422851528,1779522670000,-500.0,0.00012054,2]
[422851525,1779522670000,-836.05,0.00012054,2]
[422851520,1779522670000,-7788.78,0.00012054,2]
[422851532,1779522670000,-290.72419131,0.00012054,2]
[422851529,1779522670000,-8299.03,0.00012054,2]
[422851519,1779522670000,-617.86,0.00012054,2]
[422851526,1779522670000,-11343.66,0.00012054,2]
[422851524,1779522670000,-894.62,0.00012054,2]
[422851608,1779522671000,-3836.07,0.00012328,2]
[422851607,1779522671000,-930.87,0.00012328,2]
[422851598,1779522671000,-511.26,0.00012328,2]
[422851597,1779522671000,-684.52,0.00012328,2]
[422851600,1779522671000,-500.0,0.00012328,2]
[422851599,1779522671000,-1188.89,0.00012328,2]
[422851605,1779522671000,-533.2019352,0.00012328,2]
[422851606,1779522671000,-2455.94,0.00012328,2]
[422851603,1779522671000,-1873.78,0.00012328,2]
[422851604,1779522671000,-500.0,0.00012328,2]
[422851602,1779522671000,-924.25,0.00012328,2]
[422851601,1779522671000,-1397.34,0.00012328,2]
[422851621,1779522671000,-500.0,0.00012328,2]
[422851609,1779522671000,-1062.36,0.00012328,2]
[422851616,1779522671000,-553.08,0.00012328,2]
[422851618,1779522671000,-1941.31,0.00012328,2]
[422851613,1779522671000,-3771.01,0.00012328,2]
[422851619,1779522671000,-773.34,0.00012328,2]
[422851620,1779522671000,-583.52,0.00012328,2]
[422851612,1779522671000,-500.0,0.00012328,2]
[422851614,1779522671000,-1044.87,0.00012328,2]
[422851617,1779522671000,-848.75,0.00012328,2]
[422851615,1779522671000,-500.0,0.00012328,2]
[422851611,1779522671000,-597.98080263,0.00012328,2]
[422851594,1779522671000,-549.31,0.00012328,2]
[422851610,1779522671000,-500.0,0.00012328,2]
[422851593,1779522671000,-760.63,0.00012328,2]
[422851573,1779522671000,-661.5754,0.00012328,2]
[422851592,1779522671000,-500.0,0.00012328,2]
[422851622,1779522671000,-500.0,0.00012328,2]
[422851567,1779522671000,-934.38,0.00012328,2]
[422851570,1779522671000,-1764.2063,0.00012328,2]
[422851568,1779522671000,-623.93,0.00012328,2]
[422851569,1779522671000,-177.87237687,0.00012328,2]
[422851578,1779522671000,-521.99,0.00012328,2]
[422851581,1779522671000,-500.0,0.00012328,2]
[422851579,1779522671000,-550.5,0.00012328,2]
[422851580,1779522671000,-973.74,0.00012328,2]
[422851582,1779522671000,-1019.6,0.00012328,2]
[422851577,1779522671000,-1669.62,0.00012328,2]
[422851571,1779522671000,-882.1112,0.00012328,2]
[422851591,1779522671000,-500.0,0.00012328,2]
[422851572,1779522671000,-1764.2063,0.00012328,2]
[422851576,1779522671000,-521.15,0.00012328,2]
[422851575,1779522671000,-805.78,0.00012328,2]
[422851574,1779522671000,-546.66,0.00012328,2]
[422851584,1779522671000,-1159.16,0.00012328,2]
[422851586,1779522671000,-1237.95,0.00012328,2]
[422851587,1779522671000,-500.0,0.00012328,2]
[422851590,1779522671000,-1659.56,0.00012328,2]
[422851585,1779522671000,-500.0,0.00012328,2]
[422851588,1779522671000,-551.16,0.00012328,2]
[422851589,1779522671000,-670.18,0.00012328,2]
[422851596,1779522671000,-1479.12,0.00012328,2]
[422851595,1779522671000,-1624.28,0.00012328,2]
[422851583,1779522671000,-531.93,0.00012328,2]
[422851623,1779522671000,-700.31,0.00012328,2]
[422851663,1779522671000,-3822.56,0.00012328,2]
[422851625,1779522671000,-627.4,0.00012328,2]
[422851655,1779522671000,-725.61,0.00012328,2]
[422851656,1779522671000,-500.0,0.00012328,2]
[422851657,1779522671000,-7319.6,0.00012328,2]
[422851659,1779522671000,-500.0,0.00012328,2]
[422851660,1779522671000,-2370.66,0.00012328,2]
[422851665,1779522671000,-919.44,0.00012328,2]
[422851662,1779522671000,-1906.95,0.00012328,2]
[422851681,1779522671000,-2296.31,0.00012328,2]
[422851661,1779522671000,-950.0,0.00012328,2]
[422851664,1779522671000,-500.0,0.00012328,2]
[422851666,1779522671000,-642.13,0.00012328,2]
[422851667,1779522671000,-500.0,0.00012328,2]
[422851658,1779522671000,-5006.38,0.00012328,2]
[422851670,1779522671000,-762.05,0.00012328,2]
[422851669,1779522671000,-1534.57,0.00012328,2]
[422851672,1779522671000,-592.52,0.00012328,2]
[422851674,1779522671000,-11669.11,0.00012328,2]
[422851677,1779522671000,-500.0,0.00012328,2]
[422851673,1779522671000,-3632.74,0.00012328,2]
[422851676,1779522671000,-1016.89,0.00012328,2]
[422851675,1779522671000,-1407.6,0.00012328,2]
[422851679,1779522671000,-3803.04,0.00012328,2]
[422851678,1779522671000,-2635.18,0.00012328,2]
[422851680,1779522671000,-3777.66,0.00012328,2]
[422851682,1779522671000,-1889.65,0.00012328,2]
[422851624,1779522671000,-880.84,0.00012328,2]
[422851671,1779522671000,-1298.03,0.00012328,2]
[422851653,1779522671000,-1096.02,0.00012328,2]
[422851668,1779522671000,-647.49,0.00012328,2]
[422851648,1779522671000,-500.0,0.00012328,2]
[422851652,1779522671000,-516.78,0.00012328,2]
[422851628,1779522671000,-936.85,0.00012328,2]
[422851626,1779522671000,-500.0,0.00012328,2]
[422851629,1779522671000,-500.0,0.00012328,2]
[422851631,1779522671000,-603.47,0.00012328,2]
[422851627,1779522671000,-1170.48,0.00012328,2]
[422851632,1779522671000,-549.99,0.00012328,2]
[422851630,1779522671000,-903.24,0.00012328,2]
[422851634,1779522671000,-2347.77,0.00012328,2]
[422851639,1779522671000,-532.29,0.00012328,2]
[422851640,1779522671000,-500.0,0.00012328,2]
[422851641,1779522671000,-588.33,0.00012328,2]
[422851642,1779522671000,-823.17,0.00012328,2]
[422851633,1779522671000,-500.0,0.00012328,2]
[422851654,1779522671000,-1342.2,0.00012328,2]
[422851637,1779522671000,-1062.93,0.00012328,2]
[422851651,1779522671000,-605.54135037,0.00012328,2]
[422851650,1779522671000,-2184.12,0.00012328,2]
[422851649,1779522671000,-568.59,0.00012328,2]
[422851644,1779522671000,-2673.23,0.00012328,2]
[422851646,1779522671000,-1317.26,0.00012328,2]
[422851647,1779522671000,-500.0,0.00012328,2]
[422851643,1779522671000,-2784.25,0.00012328,2]
[422851638,1779522671000,-500.0,0.00012328,2]
[422851635,1779522671000,-500.0,0.00012328,2]
[422851636,1779522671000,-601.61,0.00012328,2]
[422851645,1779522671000,-825.75,0.00012328,2]
[422851729,1779522672000,-762.647372,0.00012329,2]
[422851724,1779522672000,-762.647372,0.00012329,2]
[422851734,1779522672000,-311.35854773,0.00012362,7]
[422851730,1779522672000,-762.647372,0.00012329,2]
[422851722,1779522672000,-762.647372,0.00012329,2]
[422851732,1779522672000,-762.647378,0.00012329,2]
[422851711,1779522672000,-891.69,0.00012328,2]
[422851718,1779522672000,-762.647372,0.00012329,2]
[422851721,1779522672000,-762.647372,0.00012329,2]
[422851716,1779522672000,-762.647372,0.00012329,2]
[422851717,1779522672000,-762.647372,0.00012329,2]
[422851727,1779522672000,-762.647372,0.00012329,2]
[422851719,1779522672000,-762.647372,0.00012329,2]
[422851725,1779522672000,-762.647372,0.00012329,2]
[422851745,1779522672000,-700.0,0.00012451,60]
[422851723,1779522672000,-762.647372,0.00012329,2]
[422851728,1779522672000,-762.647372,0.00012329,2]
[422851733,1779522672000,-298.3841784,0.00012346,7]
[422851731,1779522672000,-762.647372,0.00012329,2]
[422851747,1779522672000,-600.0,0.00012451,60]
[422851741,1779522672000,-550.0,0.00012451,60]
[422851739,1779522672000,-1084.58018531,0.000124,2]
[422851744,1779522672000,-700.0,0.00012451,60]
[422851746,1779522672000,-585.0,0.00012451,60]
[422851742,1779522672000,-550.0,0.00012451,60]
[422851735,1779522672000,-162.0,0.00012376,2]
[422851743,1779522672000,-418.0,0.00012451,60]
[422851720,1779522672000,-762.647372,0.00012329,2]
[422851726,1779522672000,-762.647372,0.00012329,2]
[422851715,1779522672000,-762.647372,0.00012329,2]
[422851685,1779522672000,-1214.59,0.00012328,2]
[422851714,1779522672000,-762.647372,0.00012329,2]
[422851684,1779522672000,-7788.78,0.00012328,2]
[422851736,1779522672000,-5110.0,0.00012376,2]
[422851686,1779522672000,-3810.6,0.00012328,2]
[422851693,1779522672000,-8299.03,0.00012328,2]
[422851690,1779522672000,-11343.66,0.00012328,2]
[422851689,1779522672000,-836.05,0.00012328,2]
[422851687,1779522672000,-3408.86,0.00012328,2]
[422851688,1779522672000,-894.62,0.00012328,2]
[422851692,1779522672000,-500.0,0.00012328,2]
[422851695,1779522672000,-2218.95,0.00012328,2]
[422851694,1779522672000,-4054.65,0.00012328,2]
[422851691,1779522672000,-4472.53,0.00012328,2]
[422851696,1779522672000,-1573.6,0.00012328,2]
[422851713,1779522672000,-762.647372,0.00012329,2]
[422851697,1779522672000,-4331.31,0.00012328,2]
[422851698,1779522672000,-560.81,0.00012328,2]
[422851705,1779522672000,-3345.98,0.00012328,2]
[422851701,1779522672000,-698.28,0.00012328,2]
[422851709,1779522672000,-1491.3,0.00012328,2]
[422851707,1779522672000,-4349.05,0.00012328,2]
[422851699,1779522672000,-3166.04,0.00012328,2]
[422851704,1779522672000,-500.0,0.00012328,2]
[422851708,1779522672000,-53596.31,0.00012328,2]
[422851703,1779522672000,-500.0,0.00012328,2]
[422851702,1779522672000,-8529.45,0.00012328,2]
[422851706,1779522672000,-1014.97,0.00012328,2]
[422851710,1779522672000,-2740.95,0.00012328,2]
[422851712,1779522672000,-500.0,0.00012329,2]
[422851700,1779522672000,-2034.71,0.00012328,2]
[422851738,1779522672000,-213.92587111,0.00012383,2]
[422851683,1779522672000,-617.86,0.00012328,2]
[422851740,1779522672000,-159.89753589,0.00012451,60]
[422851781,1779522672000,-550.5,0.00012602,2]
[422851784,1779522672000,-1019.6,0.00012602,2]
[422851779,1779522672000,-1669.62,0.00012602,2]
[422851780,1779522672000,-521.99,0.00012602,2]
[422851782,1779522672000,-973.74,0.00012602,2]
[422851783,1779522672000,-500.0,0.00012602,2]
[422851788,1779522672000,-1237.95,0.00012602,2]
[422851787,1779522672000,-500.0,0.00012602,2]
[422851789,1779522672000,-500.0,0.00012602,2]
[422851791,1779522672000,-670.18,0.00012602,2]
[422851800,1779522672000,-511.26,0.00012602,2]
[422851798,1779522672000,-1479.12,0.00012602,2]
[422851790,1779522672000,-551.16,0.00012602,2]
[422851778,1779522672000,-521.15,0.00012602,2]
[422851799,1779522672000,-684.52,0.00012602,2]
[422851794,1779522672000,-500.0,0.00012602,2]
[422851797,1779522672000,-1624.28,0.00012602,2]
[422851795,1779522672000,-760.63,0.00012602,2]
[422851793,1779522672000,-500.0,0.00012602,2]
[422851796,1779522672000,-549.31,0.00012602,2]
[422851807,1779522672000,-2455.94,0.00012602,2]
[422851808,1779522672000,-930.87,0.00012602,2]
[422851809,1779522672000,-3836.07,0.00012602,2]
[422851801,1779522672000,-1188.89,0.00012602,2]
[422851802,1779522672000,-500.0,0.00012602,2]
[422851803,1779522672000,-1397.34,0.00012602,2]
[422851804,1779522672000,-924.25,0.00012602,2]
[422851806,1779522672000,-500.0,0.00012602,2]
[422851792,1779522672000,-1659.56,0.00012602,2]
[422851776,1779522672000,-546.66,0.00012602,2]
[422851805,1779522672000,-1873.78,0.00012602,2]
[422851777,1779522672000,-805.78,0.00012602,2]
[422851774,1779522672000,-1764.2063,0.00012602,2]
[422851750,1779522672000,-400.0,0.00012451,60]
[422851758,1779522672000,-355.0,0.00012451,60]
[422851752,1779522672000,-312.0,0.00012451,60]
[422851755,1779522672000,-493.0,0.00012451,60]
[422851748,1779522672000,-600.0,0.00012451,60]
[422851754,1779522672000,-550.0,0.00012451,60]
[422851753,1779522672000,-550.0,0.00012451,60]
[422851751,1779522672000,-400.0,0.00012451,60]
[422851756,1779522672000,-400.0,0.00012451,60]
[422851749,1779522672000,-558.0,0.00012451,60]
[422851759,1779522672000,-400.0,0.00012451,60]
[422851761,1779522672000,-263.0,0.00012451,60]
[422851757,1779522672000,-400.0,0.00012451,60]
[422851760,1779522672000,-400.0,0.00012451,60]
[422851737,1779522672000,-196.0,0.00012376,2]
[422851766,1779522672000,-1084.58018531,0.000125,2]
[422851763,1779522672000,-450.0,0.00012451,60]
[422851786,1779522672000,-1159.16,0.00012602,2]
[422851775,1779522672000,-661.5754,0.00012602,2]
[422851769,1779522672000,-202.40254977,0.00012583,2]
[422851767,1779522672000,-202.40254977,0.00012508,2]
[422851773,1779522672000,-882.1112,0.00012602,2]
[422851785,1779522672000,-531.93,0.00012602,2]
[422851772,1779522672000,-1764.2063,0.00012602,2]
[422851768,1779522672000,-311.35854773,0.00012509,7]
[422851771,1779522672000,-623.93,0.00012602,2]
[422851764,1779522672000,-330.0,0.00012451,60]
[422851770,1779522672000,-934.38,0.00012602,2]
[422851765,1779522672000,-298.3841784,0.00012491,14]
[422851762,1779522672000,-450.0,0.00012451,60]
[422851842,1779522673000,-823.17,0.00012602,2]
[422851848,1779522673000,-500.0,0.00012602,2]
[422851843,1779522673000,-2784.25,0.00012602,2]
[422851846,1779522673000,-1317.26,0.00012602,2]
[422851847,1779522673000,-500.0,0.00012602,2]
[422851849,1779522673000,-568.59,0.00012602,2]
[422851850,1779522673000,-2184.12,0.00012602,2]
[422851851,1779522673000,-516.78,0.00012602,2]
[422851853,1779522673000,-1342.2,0.00012602,2]
[422851852,1779522673000,-1096.02,0.00012602,2]
[422851845,1779522673000,-825.75,0.00012602,2]
[422851844,1779522673000,-2673.23,0.00012602,2]
[422851854,1779522673000,-725.61,0.00012602,2]
[422851863,1779522673000,-500.0,0.00012602,2]
[422851864,1779522673000,-919.44,0.00012602,2]
[422851866,1779522673000,-500.0,0.00012602,2]
[422851865,1779522673000,-642.13,0.00012602,2]
[422851841,1779522673000,-588.33,0.00012602,2]
[422851867,1779522673000,-647.49,0.00012602,2]
[422851859,1779522673000,-2370.66,0.00012602,2]
[422851856,1779522673000,-7319.6,0.00012602,2]
[422851858,1779522673000,-500.0,0.00012602,2]
[422851860,1779522673000,-950.0,0.00012602,2]
[422851861,1779522673000,-1906.95,0.00012602,2]
[422851857,1779522673000,-5006.38,0.00012602,2]
[422851862,1779522673000,-3822.56,0.00012602,2]
[422851855,1779522673000,-500.0,0.00012602,2]
[422851840,1779522673000,-500.0,0.00012602,2]
[422851831,1779522673000,-603.47,0.00012602,2]
[422851833,1779522673000,-500.0,0.00012602,2]
[422851870,1779522673000,-1298.03,0.00012602,2]
[422851810,1779522673000,-1062.36,0.00012602,2]
[422851811,1779522673000,-500.0,0.00012602,2]
[422851812,1779522673000,-500.0,0.00012602,2]
[422851814,1779522673000,-1044.87,0.00012602,2]
[422851825,1779522673000,-627.4,0.00012602,2]
[422851824,1779522673000,-880.84,0.00012602,2]
[422851827,1779522673000,-1170.48,0.00012602,2]
[422851817,1779522673000,-848.75,0.00012602,2]
[422851815,1779522673000,-500.0,0.00012602,2]
[422851813,1779522673000,-3771.01,0.00012602,2]
[422851826,1779522673000,-500.0,0.00012602,2]
[422851816,1779522673000,-553.08,0.00012602,2]
[422851821,1779522673000,-500.0,0.00012602,2]
[422851823,1779522673000,-700.31,0.00012602,2]
[422851820,1779522673000,-583.52,0.00012602,2]
[422851818,1779522673000,-1941.31,0.00012602,2]
[422851819,1779522673000,-773.34,0.00012602,2]
[422851829,1779522673000,-628.86590186,0.00012602,2]
[422851835,1779522673000,-500.0,0.00012602,2]
[422851828,1779522673000,-936.85,0.00012602,2]
[422851830,1779522673000,-903.24,0.00012602,2]
[422851832,1779522673000,-549.99,0.00012602,2]
[422851834,1779522673000,-2347.77,0.00012602,2]
[422851837,1779522673000,-1062.93,0.00012602,2]
[422851838,1779522673000,-500.0,0.00012602,2]
[422851839,1779522673000,-532.29,0.00012602,2]
[422851836,1779522673000,-601.61,0.00012602,2]
[422851822,1779522673000,-500.0,0.00012602,2]
[422851876,1779522673000,-500.0,0.00012602,2]
[422851872,1779522673000,-3632.74,0.00012602,2]
[422851903,1779522673000,-500.0,0.00012602,2]
[422851904,1779522673000,-3345.98,0.00012602,2]
[422851906,1779522673000,-4349.05,0.00012602,2]
[422851898,1779522673000,-3166.04,0.00012602,2]
[422851900,1779522673000,-698.28,0.00012602,2]
[422851901,1779522673000,-8529.45,0.00012602,2]
[422851908,1779522673000,-1491.3,0.00012602,2]
[422851905,1779522673000,-1014.97,0.00012602,2]
[422851913,1779522673000,-298.3841784,0.00012636,14]
[422851911,1779522673000,-257.0,0.00012603,3]
[422851915,1779522673000,-311.35854773,0.00012655,14]
[422851914,1779522673000,-480.38662363,0.00012651,2]
[422851916,1779522673000,-202.40254977,0.00012659,7]
[422851917,1779522673000,-298.38417839,0.0001269,60]
[422851912,1779522673000,-500.0,0.00012603,2]
[422851922,1779522673000,-750.0,0.00012711,60]
[422851919,1779522673000,-500.0,0.0001269,60]
[422851923,1779522673000,-750.0,0.00012711,60]
[422851921,1779522673000,-166.46234739,0.00012701,14]
[422851920,1779522673000,-416.0,0.0001269,60]
[422851925,1779522673000,-450.0,0.00012711,60]
[422851924,1779522673000,-663.0,0.00012711,60]
[422851926,1779522673000,-450.0,0.00012711,60]
[422851927,1779522673000,-379.0,0.00012711,60]
[422851928,1779522673000,-250.60249131,0.00012711,60]
[422851929,1779522673000,-202.40254977,0.00012734,7]
[422851873,1779522673000,-11669.11,0.00012602,2]
[422851907,1779522673000,-53596.31,0.00012602,2]
[422851902,1779522673000,-500.0,0.00012602,2]
[422851918,1779522673000,-500.0,0.0001269,60]
[422851909,1779522673000,-2740.95,0.00012602,2]
[422851910,1779522673000,-891.69,0.00012602,2]
[422851877,1779522673000,-2635.18,0.00012602,2]
[422851871,1779522673000,-592.52,0.00012602,2]
[422851869,1779522673000,-762.05,0.00012602,2]
[422851868,1779522673000,-1534.57,0.00012602,2]
[422851874,1779522673000,-1407.6,0.00012602,2]
[422851878,1779522673000,-3803.04,0.00012602,2]
[422851879,1779522673000,-3777.66,0.00012602,2]
[422851880,1779522673000,-2296.31,0.00012602,2]
[422851883,1779522673000,-7788.78,0.00012602,2]
[422851882,1779522673000,-617.86,0.00012602,2]
[422851881,1779522673000,-1889.65,0.00012602,2]
[422851889,1779522673000,-11343.66,0.00012602,2]
[422851884,1779522673000,-1214.59,0.00012602,2]
[422851875,1779522673000,-1016.89,0.00012602,2]
[422851899,1779522673000,-2034.71,0.00012602,2]
[422851887,1779522673000,-894.62,0.00012602,2]
[422851895,1779522673000,-1573.6,0.00012602,2]
[422851897,1779522673000,-560.81,0.00012602,2]
[422851893,1779522673000,-4054.65,0.00012602,2]
[422851896,1779522673000,-4331.31,0.00012602,2]
[422851894,1779522673000,-2218.95,0.00012602,2]
[422851891,1779522673000,-500.0,0.00012602,2]
[422851890,1779522673000,-4472.53,0.00012602,2]
[422851888,1779522673000,-836.05,0.00012602,2]
[422851885,1779522673000,-3810.6,0.00012602,2]
[422851886,1779522673000,-3408.86,0.00012602,2]
[422851892,1779522673000,-8299.03,0.00012602,2]
[422851974,1779522674000,-684.52,0.00012876,2]
[422851968,1779522674000,-500.0,0.00012876,2]
[422851977,1779522674000,-500.0,0.00012876,2]
[422851976,1779522674000,-1188.89,0.00012876,2]
[422851975,1779522674000,-511.26,0.00012876,2]
[422851959,1779522674000,-1019.6,0.00012876,2]
[422851972,1779522674000,-1624.28,0.00012876,2]
[422851967,1779522674000,-1659.56,0.00012876,2]
[422851958,1779522674000,-500.0,0.00012876,2]
[422851961,1779522674000,-1159.16,0.00012876,2]
[422851969,1779522674000,-500.0,0.00012876,2]
[422851957,1779522674000,-973.74,0.00012876,2]
[422851973,1779522674000,-1479.12,0.00012876,2]
[422851970,1779522674000,-760.63,0.00012876,2]
[422851986,1779522674000,-500.0,0.00012876,2]
[422851971,1779522674000,-549.31,0.00012876,2]
[422851983,1779522674000,-930.87,0.00012876,2]
[422851982,1779522674000,-2455.94,0.00012876,2]
[422851985,1779522674000,-1062.36,0.00012876,2]
[422851984,1779522674000,-3836.07,0.00012876,2]
[422851987,1779522674000,-500.0,0.00012876,2]
[422851979,1779522674000,-924.25,0.00012876,2]
[422851989,1779522674000,-1044.87,0.00012876,2]
[422851990,1779522674000,-635.38800386,0.00012876,2]
[422851981,1779522674000,-500.0,0.00012876,2]
[422851978,1779522674000,-1397.34,0.00012876,2]
[422851988,1779522674000,-3771.01,0.00012876,2]
[422851980,1779522674000,-1873.78,0.00012876,2]
[422851966,1779522674000,-670.18,0.00012876,2]
[422851955,1779522674000,-521.99,0.00012876,2]
[422851933,1779522674000,-1000.0,0.00012812,2]
[422851960,1779522674000,-531.93,0.00012876,2]
[422851932,1779522674000,-202.40254977,0.00012809,7]
[422851935,1779522674000,-350.0,0.00012856,60]
[422851934,1779522674000,-492.0,0.00012812,2]
[422851931,1779522674000,-311.35854773,0.00012802,14]
[422851930,1779522674000,-298.3841784,0.00012781,30]
[422851937,1779522674000,-202.0,0.00012856,60]
[422851936,1779522674000,-350.0,0.00012856,60]
[422851939,1779522674000,-650.0,0.00012856,60]
[422851950,1779522674000,-623.93,0.00012876,2]
[422851947,1779522674000,-155.67927385,0.00012857,60]
[422851991,1779522674000,-553.08,0.00012876,2]
[422851938,1779522674000,-650.0,0.00012856,60]
[422851942,1779522674000,-900.0,0.00012856,60]
[422851956,1779522674000,-550.5,0.00012876,2]
[422851940,1779522674000,-634.0,0.00012856,60]
[422851941,1779522674000,-4183.0,0.00012856,60]
[422851945,1779522674000,-500.0,0.00012856,60]
[422851944,1779522674000,-500.0,0.00012856,60]
[422851946,1779522674000,-395.0,0.00012856,60]
[422851943,1779522674000,-786.0,0.00012856,60]
[422851952,1779522674000,-805.78,0.00012876,2]
[422851963,1779522674000,-1237.95,0.00012876,2]
[422851962,1779522674000,-500.0,0.00012876,2]
[422851964,1779522674000,-500.0,0.00012876,2]
[422851953,1779522674000,-521.15,0.00012876,2]
[422851954,1779522674000,-1669.62,0.00012876,2]
[422851965,1779522674000,-551.16,0.00012876,2]
[422851951,1779522674000,-546.66,0.00012876,2]
[422851948,1779522674000,-934.38,0.00012876,2]
[422851993,1779522674000,-1941.31,0.00012876,2]
[422852050,1779522674000,-500.0,0.00012876,2]
[422851995,1779522674000,-583.52,0.00012876,2]
[422852028,1779522674000,-725.61,0.00012876,2]
[422852029,1779522674000,-371.71076742,0.00012876,2]
[422852033,1779522674000,-2370.66,0.00012876,2]
[422852032,1779522674000,-500.0,0.00012876,2]
[422852036,1779522674000,-3822.56,0.00012876,2]
[422852030,1779522674000,-7319.6,0.00012876,2]
[422852035,1779522674000,-1906.95,0.00012876,2]
[422852037,1779522674000,-500.0,0.00012876,2]
[422852031,1779522674000,-5006.38,0.00012876,2]
[422852034,1779522674000,-950.0,0.00012876,2]
[422852038,1779522674000,-919.44,0.00012876,2]
[422852039,1779522674000,-642.13,0.00012876,2]
[422852040,1779522674000,-500.0,0.00012876,2]
[422852027,1779522674000,-1342.2,0.00012876,2]
[422852043,1779522674000,-762.05,0.00012876,2]
[422852042,1779522674000,-1534.57,0.00012876,2]
[422852044,1779522674000,-1298.03,0.00012876,2]
[422852051,1779522674000,-2635.18,0.00012876,2]
[422852052,1779522674000,-3803.04,0.00012876,2]
[422852049,1779522674000,-1016.89,0.00012876,2]
[422852047,1779522674000,-11669.11,0.00012876,2]
[422852045,1779522674000,-592.52,0.00012876,2]
[422852046,1779522674000,-3632.74,0.00012876,2]
[422852053,1779522674000,-3777.66,0.00012876,2]
[422852055,1779522674000,-1889.65,0.00012876,2]
[422852054,1779522674000,-2296.31,0.00012876,2]
[422852056,1779522674000,-617.86,0.00012876,2]
[422851994,1779522674000,-773.34,0.00012876,2]
[422852041,1779522674000,-647.49,0.00012876,2]
[422852026,1779522674000,-1096.02,0.00012876,2]
[422852048,1779522674000,-1407.6,0.00012876,2]
[422852023,1779522674000,-568.59,0.00012876,2]
[422851996,1779522674000,-500.0,0.00012876,2]
[422852025,1779522674000,-516.78,0.00012876,2]
[422851997,1779522674000,-500.0,0.00012876,2]
[422851999,1779522674000,-880.84,0.00012876,2]
[422851998,1779522674000,-700.31,0.00012876,2]
[422851992,1779522674000,-848.75,0.00012876,2]
[422852001,1779522674000,-500.0,0.00012876,2]
[422852003,1779522674000,-936.85,0.00012876,2]
[422852002,1779522674000,-1170.48,0.00012876,2]
[422852008,1779522674000,-2347.77,0.00012876,2]
[422852011,1779522674000,-1062.93,0.00012876,2]
[422852009,1779522674000,-500.0,0.00012876,2]
[422852010,1779522674000,-601.61,0.00012876,2]
[422852004,1779522674000,-903.24,0.00012876,2]
[422852000,1779522674000,-627.4,0.00012876,2]
[422852006,1779522674000,-549.99,0.00012876,2]
[422852022,1779522674000,-371.19584571,0.00012876,2]
[422852005,1779522674000,-603.47,0.00012876,2]
[422852024,1779522674000,-2184.12,0.00012876,2]
[422852019,1779522674000,-825.75,0.00012876,2]
[422852021,1779522674000,-500.0,0.00012876,2]